bitfinex/quotes_ETHUSD_20220218
["timestamp","ask_amount","ask_price","bid_price","bid_amount"]
[1645145262342,0.00296032,2884.2,2883.7,0.00391176]
[1645145262540,1.7346,2884.0,2883.7,0.00391176]
[1645145263239,1.7346,2884.0,2883.7,0.00687291]
[1645145263439,1.13982322,2883.9,2883.7,0.00687291]
[1645145263641,0.86747,2883.8,2883.7,0.00687291]
[1645145264140,0.86747,2883.8,2883.7,0.00391176]
[1645145272886,6.5039,2883.7,2883.6,6.64e-05]
[1645145273089,27.60693305,2883.7,2883.6,6.64e-05]
[1645145273291,33.69390705,2883.7,2882.2,3.5]
[1645145273487,0.86778,2883.4,2882.3,1.36112506]
[1645145273788,0.86778,2883.4,2881.9,10.8]
[1645145273789,0.86776,2883.1,2882.4,1.36112506]
[1645145273987,1.13658497,2882.9,2882.1,1.02231177]
[1645145274190,1.13658497,2882.9,2882.2,1.36118437]
[1645145274191,0.86773,2882.8,2882.2,1.36118437]
[1645145274990,0.86773,2882.7,2882.2,1.36118437]
[1645145276266,0.86764,2882.8,2882.2,1.36118437]
[1645145276464,0.86764,2882.8,2882.3,0.00315699]
[1645145277269,0.86764,2882.8,2882.2,1.36118437]
[1645145277568,0.86764,2882.7,2882.2,1.36118437]
[1645145278167,1.04104,2882.7,2881.9,0.2584]
[1645145278367,0.86764,2882.7,2882.0,1.35941018]
[1645145278566,0.86764,2882.7,2881.4,5.169]
[1645145278771,0.86764,2882.7,2882.0,0.04092649]
[1645145278967,0.8678,2882.3,2881.5,0.04376861]
[1645145279168,0.86782,2882.1,2881.6,1.40197171]
[1645145279367,0.86782,2882.1,2881.7,1.35877152]
[1645145279598,0.86782,2882.1,2881.8,1.35877152]
[1645145279796,0.86782,2882.1,2881.8,1.40083486]
[1645145279995,0.86782,2882.1,2881.9,1.40026644]
[1645145280200,0.86782,2882.1,2881.9,0.04149492]
[1645145280201,2.60352,2882.1,2881.9,0.04149492]
[1645145280596,2.60352,2882.1,2881.5,0.04376861]
[1645145280801,0.86784,2882.0,2881.6,1.35854703]
[1645145281299,0.86784,2882.0,2881.7,0.04578804]
[1645145281499,0.86784,2882.0,2881.8,1.35854703]
[1645145281800,3.61218704,2882.1,2881.8,1.40061037]
[1645145281998,0.15890596,2882.1,2881.9,0.04149492]
[1645145282399,0.86784,2882.0,2881.8,0.04521954]
[1645145282600,1.73568,2882.0,2881.8,0.0031562]
[1645145282805,1.73568,2882.0,2881.9,0.04149492]
[1645145283642,1.73568,2882.0,2881.8,0.0031562]
[1645145284043,1.73568,2882.0,2881.9,0.04149492]
[1645145284445,8.23607,2881.9,2881.1,0.1734]
[1645145284648,11.90947,2881.9,2880.7,5.169]
[1645145284845,0.86819,2881.7,2881.4,0.01262671]
[1645145285043,0.86817,2881.6,2881.4,0.01262671]
[1645145285743,0.86817,2881.6,2880.7,5.169]
[1645145285744,0.9473571,2881.5,2880.7,5.169]
[1645145285949,0.86814,2881.1,2880.8,1.62470292]
[1645145286151,0.86814,2881.1,2880.8,0.3]
[1645145286751,3.45644002,2881.3,2880.7,5.169]
[1645145286996,5.19281002,2881.3,2880.7,5.169]
[1645145287196,1.86402849,2881.0,2880.7,5.169]
[1645145287399,1.86402849,2881.0,2880.4,0.53128578]
[1645145287597,1.86402849,2881.0,2880.5,1.32462196]
[1645145288001,1.86402849,2881.0,2880.6,0.00387668]
[1645145288196,2.73220849,2881.0,2880.6,0.00387668]
[1645145288597,1.86402849,2881.0,2880.6,0.00387668]
[1645145288997,3.58139534,2880.9,2880.6,0.00387668]
[1645145289199,3.58139534,2880.9,2880.3,0.0145706]
[1645145289200,5.31778534,2880.9,2880.3,0.0145706]
[1645145289398,4.44959534,2880.9,2880.3,0.0145706]
[1645145289596,4.44959534,2880.9,2880.6,0.00315449]
[1645145290000,0.8682,2880.9,2880.6,0.00315449]
[1645145290399,4.25918549,2880.9,2880.6,0.00315449]
[1645145290604,0.86831,2880.7,2880.3,0.0145706]
[1645145290845,0.86831,2880.7,2880.6,0.00315449]
[1645145291841,0.86827,2880.6,2880.5,0.00387668]
[1645145292043,8.5538785,2880.9,2880.5,0.00703121]
[1645145292044,3.4039,2880.9,2880.5,0.00703121]
[1645145292245,3.3544,2881.2,2880.6,1.3225834]
[1645145292443,3.3544,2881.2,2880.7,0.00387668]
[1645145292444,3.181,2881.2,2880.7,0.00387668]
[1645145292643,3.181,2881.2,2880.7,1.32646008]
[1645145292644,2.053,2881.2,2880.7,1.32646008]
[1645145292843,2.053,2881.2,2880.8,1.3225834]
[1645145293044,2.053,2881.2,2880.8,0.00387668]
[1645145293248,2.053,2881.2,2880.8,0.00315439]
[1645145293646,2.053,2881.2,2880.8,0.00703107]
[1645145294046,3.78936,2881.2,2880.8,0.00315439]
[1645145294246,3.78936,2881.2,2880.6,1.32188739]
[1645145294489,3.78936,2881.2,2880.0,0.50487668]
[1645145294490,0.86813,2881.1,2880.9,0.00315437]
[1645145294891,1.23103734,2881.0,2880.9,0.00315437]
[1645145295095,4.72101279,2881.0,2880.9,0.00315437]
[1645145295291,4.72101279,2881.0,2880.1,0.00387668]
[1645145295494,0.86824,2880.9,2880.4,1.32262686]
[1645145295696,0.86824,2880.9,2880.5,0.00387668]
[1645145295902,0.86823,2880.9,2880.8,0.00315439]
[1645145296695,0.86823,2880.9,2880.0,0.00387668]
[1645145296696,2.60495,2880.8,2880.0,0.00387668]
[1645145296897,2.60495,2880.8,2880.3,0.02719025]
[1645145296898,4.64487757,2880.7,2880.3,0.02719025]
[1645145297102,4.94487757,2880.7,2880.3,0.02719025]
[1645145297301,1.16832,2880.7,2880.3,0.02719025]
[1645145297800,3.47393,2880.6,2880.3,0.0145706]
[1645145298000,3.47393,2880.6,2880.4,0.0031546]
[1645145298001,1.04194,2880.5,2880.4,0.0031546]
[1645145298262,1.1734,2880.5,2880.4,0.0031546]
[1645145298466,6.5,2880.4,2880.0,0.00387668]
[1645145298659,6.5,2880.4,2879.9,0.01964831]
[1645145298862,8.53738,2880.4,2879.9,0.01964831]
[1645145299061,1.10898743,2880.0,2879.9,0.007028]
[1645145299361,11.14337,2880.4,2879.9,0.007028]
[1645145299362,2.7552,2880.4,2879.9,0.007028]
[1645145300162,4.4921,2880.4,2879.9,0.007028]
[1645145300362,4.49228,2880.4,2879.9,0.007028]
[1645145300563,0.99814165,2880.1,2879.9,0.007028]
[1645145300973,3.62374,2880.4,2879.9,0.007028]
[1645145300974,2.7552,2880.4,2879.9,0.007028]
[1645145301167,0.86849,2880.2,2879.9,0.007028]
[1645145301467,0.86846,2880.1,2879.9,0.007028]
[1645145301664,0.86846,2880.1,2880.0,0.00135207]
[1645145301868,2.7552,2880.4,2880.1,0.70073959]
[1645145302091,28.5049,2880.6,2880.2,0.00387668]
[1645145302092,25.3165,2880.6,2880.2,0.00387668]
[1645145302295,1.14858002,2880.3,2880.2,0.00387668]
[1645145302493,2.01708002,2880.3,2880.2,0.00387668]
[1645145302691,2.31708002,2880.3,2880.2,0.00387668]
[1645145303894,2.01708002,2880.3,2880.2,0.00387668]
[1645145304097,22.35708002,2880.3,2880.2,0.00387668]
[1645145304493,2.01708002,2880.3,2880.2,0.00387668]
[1645145305754,1.14858002,2880.3,2880.2,0.00387668]
[1645145306359,3.5878,2880.6,2880.2,0.00387668]
[1645145306761,0.86837,2880.4,2880.2,0.00387668]
[1645145307560,0.86837,2880.4,2880.2,0.00701994]
[1645145307961,6.5,2880.3,2879.3,3.5]
[1645145308164,6.5,2880.3,2879.1,0.0134016]
[1645145308165,0.86846,2880.1,2879.1,0.0134016]
[1645145308466,20.35296375,2879.8,2879.1,0.0134016]
[1645145308765,0.85593212,2879.2,2879.1,0.0134016]
[1645145309162,21.19593212,2879.2,2879.1,0.0134016]
[1645145309362,22.20893,2879.2,2879.1,1.6e-06]
[1645145309601,22.07827,2878.9,2877.6,7.3]
[1645145309803,2.03827,2878.9,2877.6,7.3]
[1645145310001,6.368,2879.2,2877.6,7.3]
[1645145310200,6.368,2879.2,2879.0,0.00115297]
[1645145310400,1.184022,2879.1,2879.0,0.00115297]
[1645145310808,0.86878,2879.1,2879.0,0.00115297]
[1645145311008,3.4185,2879.6,2878.3,6.44273572]
[1645145311206,2.1484,2879.9,2878.7,0.1736]
[1645145311411,2.1484,2879.9,2878.9,0.00294665]
[1645145311412,0.00294569,2879.8,2878.9,0.00294665]
[1645145311806,2.85784535,2879.6,2878.9,0.00294665]
[1645145312007,0.8687,2879.4,2878.9,0.00294665]
[1645145312204,0.8687,2879.4,2878.3,1.14273572]
[1645145312205,1.73742,2879.4,2878.3,1.14273572]
[1645145312404,1.73742,2879.4,2879.1,0.00294657]
[1645145312405,0.8687,2879.4,2879.1,0.00294657]
[1645145313443,0.8687,2879.4,2878.1,0.6746]
[1645145313444,1.73741,2879.4,2878.1,0.6746]
[1645145313645,0.8687,2879.4,2879.1,0.00293674]
[1645145314447,0.86859,2879.6,2879.1,0.00293674]
[1645145314643,0.86859,2879.6,2878.5,0.84647714]
[1645145314843,0.86859,2879.6,2878.5,1.14647714]
[1645145315246,2.94271496,2879.8,2878.6,1.35725682]
[1645145315247,0.00180496,2879.8,2878.6,1.35725682]
[1645145315445,0.00180496,2879.8,2879.1,1.73652]
[1645145315648,0.00180496,2879.8,2879.2,0.501]
[1645145315849,3.4929,2880.2,2879.3,0.501]
[1645145316047,1.1692,2880.5,2879.3,0.501]
[1645145316248,0.00180509,2879.8,2879.3,1.45101106]
[1645145316450,0.00180509,2879.8,2879.4,0.95002106]
[1645145316652,0.00180509,2879.8,2879.5,1.57809484]
[1645145317096,3.2994,2880.7,2879.6,4.06729279]
[1645145317296,1.73643,2881.2,2879.7,1.501]
[1645145317297,0.00312964,2879.8,2879.7,1.501]
[1645145317499,0.00312964,2879.8,2879.7,11.00094907]
[1645145317698,0.08819997,2881.3,2879.8,6.5]
[1645145317899,0.08819997,2881.3,2880.5,1.03103064]
[1645145318096,7.76348641,2881.4,2880.5,1.33103064]
[1645145318097,6.8152,2881.4,2880.5,1.33103064]
[1645145318700,6.8152,2881.4,2880.1,0.1735]
[1645145318900,0.35069803,2881.3,2880.0,0.501]
[1645145319101,0.86828,2880.9,2880.0,0.501]
[1645145319902,1.90995,2881.1,2880.0,0.501]
[1645145320100,1.05672513,2881.0,2880.1,0.96368058]
[1645145320499,0.1734,2881.1,2880.1,0.96368058]
[1645145320752,0.86823,2881.2,2880.1,1.26368058]
[1645145321357,0.86823,2881.2,2880.1,0.96368058]
[1645145321557,1.11064427,2881.0,2880.1,1.26368058]
[1645145321757,2.84719427,2881.0,2880.1,1.26368058]
[1645145321964,1.97892427,2881.0,2880.1,0.96368058]
[1645145322156,0.00312924,2880.8,2880.0,0.53362956]
[1645145322357,0.00312924,2880.8,2879.6,0.00313056]
[1645145322757,0.86839,2880.6,2879.6,0.00313056]
[1645145322961,0.86841,2880.4,2879.3,0.3413]
[1645145323160,0.17783243,2880.3,2879.3,0.3413]
[1645145323358,1.03438901,2880.2,2879.3,0.3413]
[1645145323558,1.03438901,2880.2,2879.6,0.00313027]
[1645145323756,0.17784803,2880.1,2879.6,0.00233027]
[1645145324158,0.86852,2880.0,2879.4,0.00378187]
[1645145324797,1.13184474,2879.9,2879.4,0.00378187]
[1645145325400,0.86857,2879.8,2879.4,0.00378187]
[1645145325600,0.1736,2879.7,2879.4,0.00378187]
[1645145326001,0.1736,2879.8,2879.4,0.00378187]
[1645145326602,0.86881,2879.6,2879.4,0.00378187]
[1645145326810,1.04241,2879.6,2879.4,0.00378187]
[1645145327003,1.04241,2879.6,2879.5,0.00313004]
[1645145327804,1.04241,2879.6,2879.4,0.00378187]
[1645145328004,0.86881,2879.6,2879.4,0.00378187]
[1645145328249,0.86881,2879.6,2879.4,0.00691193]
[1645145329052,0.86881,2879.6,2879.4,0.00378187]
[1645145329249,0.86881,2879.6,2879.4,0.00691195]
[1645145329449,0.86881,2879.6,2879.4,0.00313008]
[1645145329652,0.86881,2879.6,2879.4,3.008e-05]
[1645145329653,24.13428838,2879.5,2879.4,3.008e-05]
[1645145329855,21.69204298,2879.5,2879.4,3.008e-05]
[1645145330248,21.69204298,2879.5,2878.3,0.00378187]
[1645145330453,0.86897,2879.0,2878.3,0.00378187]
[1645145330648,1.81148381,2879.0,2878.3,0.00378187]
[1645145330856,1.1736,2879.4,2878.3,0.00378187]
[1645145330857,0.1736,2879.4,2878.3,0.00378187]
[1645145331056,0.1736,2879.5,2878.3,0.00378187]
[1645145331857,0.1736,2879.5,2878.8,0.00313036]
[1645145331858,1.27435795,2879.5,2878.8,0.00313036]
[1645145332099,1.27435795,2879.5,2878.8,0.00691223]
[1645145332301,0.1736,2879.5,2878.8,0.00691223]
[1645145332504,0.86879,2879.3,2878.8,0.00691223]
[1645145332701,0.86879,2879.3,2878.8,0.00378187]
[1645145333000,4.3902262,2879.3,2879.0,0.00313024]
[1645145333503,0.86883,2879.2,2879.0,0.00313024]
[1645145333702,1.30060654,2879.1,2879.0,0.00313024]
[1645145334001,0.86897,2878.9,2878.0,0.00378187]
[1645145334200,0.86897,2878.9,2878.5,0.01252294]
[1645145334401,0.86893,2878.8,2878.5,0.01252294]
[1645145335108,1.73794,2879.0,2878.0,0.00378187]
[1645145335109,0.86885,2879.0,2878.0,0.00378187]
[1645145335401,0.86885,2879.0,2878.5,0.00313047]
[1645145336054,2.60654,2879.0,2878.5,0.00313047]
[1645145336252,1.73772,2879.0,2878.0,0.00378187]
[1645145336455,1.73772,2879.0,2878.6,0.002966]
[1645145337454,0.86891,2878.9,2878.3,1.27476516]
[1645145337659,2.60667,2878.9,2878.7,0.00296598]
[1645145338656,2.60667,2878.9,2878.4,0.00378187]
[1645145338855,2.60667,2878.9,2878.4,1.28010329]
[1645145338856,0.86888,2878.8,2878.4,1.28010329]
[1645145339056,0.86888,2878.8,2878.7,0.00296598]
[1645145339258,4.3261,2879.2,2878.7,0.00296598]
[1645145339501,1.228,2879.2,2878.7,0.00296598]
[1645145339999,1.228,2879.2,2878.7,1.28009566]
[1645145340205,2.111,2879.3,2878.8,1.28270987]
[1645145340398,2.111,2879.3,2878.8,0.0069122]
[1645145340805,2.111,2879.3,2878.8,0.00313033]
[1645145341008,21.39449492,2879.2,2878.8,0.00313033]
[1645145341203,0.18575492,2879.1,2878.4,0.00378187]
[1645145341406,0.18575492,2879.1,2877.9,1.28105649]
[1645145341606,1.73791,2878.9,2877.9,1.28105649]
[1645145341803,0.89385165,2878.5,2877.9,1.28105649]
[1645145343244,2.96741,2878.9,2877.9,1.28105649]
[1645145343645,0.86894,2878.6,2877.9,1.28105649]
[1645145343847,0.86894,2878.6,2878.1,0.0031193]
[1645145344244,1.87786373,2878.6,2878.1,0.00690117]
[1645145344444,1.87786373,2878.6,2878.2,1.27727462]
[1645145344846,1.87786373,2878.6,2878.3,1.28105649]
[1645145345050,1.87786373,2878.6,2878.2,0.00296925]
[1645145345249,1.00892373,2878.6,2878.2,0.00296925]
[1645145345452,3.6269,2878.7,2878.6,0.56967194]
[1645145345651,2.30773433,2878.9,2878.6,0.56967194]
[1645145345652,0.90463433,2878.9,2878.6,0.56967194]
[1645145346053,0.90463433,2878.9,2878.7,0.00378187]
[1645145346254,20.54460084,2878.8,2878.7,0.00378187]
[1645145346653,21.54460084,2878.8,2878.7,0.00378187]
[1645145347096,6.5,2878.7,2877.4,2.0]
[1645145347308,0.91617792,2877.8,2877.5,1.24927872]
[1645145347506,0.91617792,2877.8,2877.0,0.1]
[1645145347507,22.12544792,2877.8,2877.0,0.1]
[1645145347700,20.7291582,2877.7,2877.0,0.1]
[1645145347901,20.34,2877.5,2877.0,0.1]
[1645145348108,24.05553905,2877.4,2877.0,0.1]
[1645145348304,24.05553905,2877.4,2876.5,0.0111496]
[1645145348305,26.84,2877.2,2876.5,0.0111496]
[1645145348502,0.85808686,2876.6,2876.5,0.0111496]
[1645145348900,1.15808686,2876.6,2876.5,0.0111496]
[1645145349099,1.33188686,2876.6,2876.5,0.0111496]
[1645145349301,6.5,2876.5,2875.0,0.65897218]
[1645145349502,6.5,2876.5,2874.9,2.36934438]
[1645145349503,20.34,2876.3,2874.9,2.36934438]
[1645145349704,20.34,2875.9,2874.9,2.36934438]
[1645145349905,0.1738,2875.9,2875.0,1.24266909]
[1645145350101,20.5138,2875.9,2875.0,1.24266909]
[1645145350301,0.4738,2875.9,2875.0,1.24266909]
[1645145350501,0.1738,2875.9,2875.0,1.24266909]
[1645145350761,0.1738,2876.2,2875.1,1.24266909]
[1645145350963,5.0251,2876.3,2875.6,1.15618883]
[1645145350964,1.2497,2876.3,2875.6,1.15618883]
[1645145351161,0.08819997,2877.0,2875.6,1.15618883]
[1645145351360,3.5,2876.7,2875.7,1.23909592]
[1645145351559,0.1738,2876.6,2875.6,1.15618883]
[1645145351759,1.2162,2876.9,2875.6,1.15618883]
[1645145351760,0.1738,2876.7,2875.6,1.15618883]
[1645145351959,6.5291,2876.8,2875.6,1.15618883]
[1645145351960,0.1738,2876.4,2875.6,1.15618883]
[1645145352562,0.86957,2876.7,2875.7,1.24185325]
[1645145352863,3.12919,2876.9,2875.7,1.24185325]
[1645145352864,4.3738,2876.9,2875.7,1.24185325]
[1645145353064,1.2162,2876.9,2875.7,1.24185325]
[1645145353264,1.2162,2876.9,2875.8,1.28639]
[1645145353460,1.2162,2876.9,2875.9,1.24185325]
[1645145353659,1.2162,2876.9,2876.6,0.9613931]
[1645145353858,0.08819997,2877.0,2876.6,0.9613931]
[1645145354060,0.08819997,2877.0,2875.9,2.58633]
[1645145354260,0.08819997,2877.0,2876.0,1.24132729]
[1645145354700,0.08819997,2877.0,2876.7,0.0031155]
[1645145354903,0.1738,2877.5,2876.7,0.0031155]
[1645145355103,0.86915,2878.4,2876.7,0.0031155]
[1645145355104,6.1224,2877.8,2876.7,0.0031155]
[1645145355500,6.1224,2877.8,2876.6,0.417]
[1645145355910,6.1224,2877.8,2877.1,1.17822856]
[1645145356106,3.1752,2877.8,2877.1,0.00311531]
[1645145356308,24.91954545,2877.6,2877.1,0.00311531]
[1645145356509,0.1736,2877.5,2877.1,0.00311531]
[1645145356709,0.4736,2877.5,2875.5,1.46002]
[1645145357009,0.4736,2877.5,2877.2,0.00311525]
[1645145357010,3.5,2877.4,2877.2,0.00311525]
[1645145357211,20.5136,2877.3,2877.2,1.525e-05]
[1645145357510,20.8136,2877.3,2877.2,1.525e-05]
[1645145357809,1.7736,2877.3,2877.2,1.525e-05]
[1645145358010,1.7736,2877.3,2875.6,1.73885]
[1645145358247,1.10409273,2876.5,2875.7,1.23940953]
[1645145358451,6.772,2877.2,2875.7,1.23940953]
[1645145358647,3.90270567,2877.1,2875.7,1.23940953]
[1645145358854,3.90270567,2877.1,2874.8,1.4764506]
[1645145358855,5.86967,2876.7,2874.8,1.4764506]
[1645145359049,5.86967,2876.7,2874.7,7.3]
[1645145359050,5.0,2876.2,2874.7,7.3]
[1645145359249,20.34,2876.0,2874.5,0.0113839]
[1645145359447,1.1786,2875.9,2875.8,0.00523949]
[1645145359651,6.1909,2876.2,2875.8,0.00523949]
[1645145359851,0.1738,2876.5,2875.8,0.80617574]
[1645145359852,3.09182,2876.5,2875.8,0.80617574]
[1645145360048,3.09182,2876.5,2874.8,0.04035806]
[1645145360049,3.96153,2876.5,2874.8,0.04035806]
[1645145360252,5.72211,2876.5,2874.8,0.04035806]
[1645145360446,5.72211,2876.5,2874.6,0.1738]
[1645145360447,5.72211,2876.5,2874.7,0.04092649]
[1645145360647,5.72211,2876.5,2874.8,1.22933242]
[1645145360851,0.86969,2876.2,2874.8,1.22933242]
[1645145361057,0.1738,2876.1,2875.3,1.0032315]
[1645145361454,1.4786,2876.5,2875.3,1.0032315]
[1645145361455,0.1738,2876.4,2875.3,1.0032315]
[1645145361857,1.04342,2876.4,2875.3,1.0032315]
[1645145362299,0.86984,2876.2,2875.3,1.0032315]
[1645145362603,0.1738,2876.4,2875.3,1.0032315]
[1645145362999,0.1738,2876.4,2875.4,0.00367455]
[1645145363197,0.86968,2876.3,2875.4,0.00367455]
[1645145363601,1.16968,2876.3,2875.4,0.00367455]
[1645145363899,0.3,2876.3,2875.4,0.00367455]
[1645145364098,2.21325,2876.4,2875.7,0.00311598]
[1645145364300,4.08301,2876.4,2875.7,0.00311598]
[1645145364499,0.86972,2876.2,2875.7,0.00311598]
[1645145364699,1.16972,2876.2,2875.7,0.00311598]
[1645145364913,4.08301,2876.4,2875.7,0.00311598]
[1645145364914,0.1738,2876.4,2875.7,0.00311598]
[1645145365203,1.1786,2876.5,2875.4,3.77577626]
[1645145365399,1.1786,2876.5,2875.7,0.00311604]
[1645145365600,2.04818,2876.5,2875.7,0.00311604]
[1645145366057,2.04818,2876.5,2875.8,0.94150918]
[1645145366256,2.04818,2876.5,2875.9,0.00367455]
[1645145367059,2.04818,2876.5,2875.4,0.00367455]
[1645145367060,0.86974,2876.3,2875.4,0.00367455]
[1645145367254,0.1738,2876.2,2875.1,0.00367455]
[1645145367454,0.1738,2876.2,2874.8,1.23453556]
[1645145367455,1.73959,2876.1,2874.8,1.23453556]
[1645145367754,2.03959,2876.1,2874.8,1.23453556]
[1645145367956,1.2414,2876.1,2875.4,1.1912327]
[1645145368162,0.1738,2876.3,2876.2,0.33852176]
[1645145368458,1.9676,2876.6,2876.2,0.33852176]
[1645145368459,1.73947,2876.4,2876.2,0.33852176]
[1645145368655,0.1738,2876.3,2876.2,0.34217857]
[1645145368861,1.1738,2876.3,2876.2,0.34217857]
[1645145369256,22.39896836,2876.3,2876.2,0.34217857]
[1645145369497,21.89896836,2876.3,2876.2,0.34217857]
[1645145369699,26.52930836,2876.2,2875.7,0.00311404]
[1645145369897,26.52930836,2876.2,2874.7,3.84092649]
[1645145369898,1.0,2876.1,2874.7,3.84092649]
[1645145370100,1.0,2876.1,2874.7,0.04092649]
[1645145370298,3.9096,2876.1,2875.7,0.00311404]
[1645145370500,4.81638186,2876.1,2875.7,0.00311404]
[1645145370700,26.88558022,2876.1,2875.7,0.00311404]
[1645145370902,1.73985,2875.8,2875.7,0.00311404]
[1645145371101,1.73985,2875.8,2874.6,0.04149491]
[1645145371102,21.76915836,2875.8,2874.6,0.04149491]
[1645145371303,1.5387,2875.7,2874.6,0.04149491]
[1645145371506,8.1709,2875.7,2874.6,0.04149491]
[1645145371701,0.87002,2875.4,2874.6,0.04149491]
[1645145372101,0.3,2875.4,2874.6,0.04149491]
[1645145372303,1.17003,2875.4,2874.6,0.04149491]
[1645145372702,0.86997,2875.3,2874.6,0.04149491]
[1645145373946,0.86997,2875.3,2874.8,0.00311187]
[1645145373947,1.88847452,2875.3,2874.8,0.00311187]
[1645145374151,0.86997,2875.3,2874.8,0.00311187]
[1645145374548,0.87001,2875.2,2874.8,0.00311187]
[1645145374749,0.87001,2875.2,2874.6,0.04149491]
[1645145374949,1.74004,2875.5,2874.6,0.04149491]
[1645145375149,2.04004,2875.5,2874.9,0.00296286]
[1645145375749,0.86992,2875.4,2874.9,0.00296286]
[1645145375956,0.86992,2875.4,2874.6,0.04149491]
[1645145376355,0.86992,2875.4,2875.1,0.0029628]
[1645145377201,0.86992,2875.4,2874.6,0.04149491]
[1645145377601,0.86992,2875.4,2875.1,0.00296278]
[1645145378101,1.16992,2875.4,2875.1,0.00296278]
[1645145378306,1.16992,2875.4,2874.6,0.04149491]
[1645145378502,0.86992,2875.4,2874.6,0.04149491]
[1645145378804,0.84582017,2875.6,2875.1,0.00296278]
[1645145378805,1.71567017,2875.6,2875.1,0.00296278]
[1645145379202,1.14582017,2875.6,2875.1,0.00296278]
[1645145379405,2.01579017,2875.6,2875.1,0.00296278]
[1645145379603,2.01579017,2875.6,2874.6,0.04149491]
[1645145379800,0.86993,2875.5,2874.7,1.19731956]
[1645145380001,0.87002,2875.5,2874.7,1.19731956]
[1645145380402,2.91002,2875.4,2874.7,1.19731956]
[1645145381257,0.86999,2875.3,2874.7,1.19731956]
[1645145381854,8.78462,2875.7,2874.7,1.19731956]
[1645145382063,2.0407,2875.7,2874.8,3.5]
[1645145382256,2.0407,2875.7,2874.9,0.1738]
[1645145382456,5.872,2876.3,2875.3,0.86954]
[1645145382854,5.872,2876.3,2875.3,0.3]
[1645145383058,5.872,2876.3,2875.5,1.18618219]
[1645145383260,6.74163,2876.3,2875.5,1.48618219]
[1645145383456,6.74163,2876.3,2875.7,0.00311061]
[1645145384057,5.872,2876.3,2875.7,0.00311061]
[1645145384498,0.86965,2876.2,2874.9,0.1738]
[1645145384701,0.86965,2876.2,2875.0,1.19906878]
[1645145384898,0.86965,2876.2,2875.7,0.00311074]
[1645145385300,1.18595529,2876.0,2875.7,0.00311074]
[1645145385497,2.05569529,2876.0,2875.7,0.00311074]
[1645145385699,0.86974,2876.0,2875.2,0.0036019]
[1645145385902,0.86974,2876.0,2875.7,0.00311064]
[1645145386803,0.86974,2876.0,2875.3,0.0036019]
[1645145387001,0.3,2876.2,2875.3,0.8732519]
[1645145387208,0.3,2876.2,2875.7,0.00311064]
[1645145387401,5.872,2876.3,2875.7,0.00311064]
[1645145387606,0.1738,2876.5,2875.7,0.00311064]
[1645145387806,2.0195,2876.7,2875.7,0.67081064]
[1645145388007,10.885,2877.1,2875.7,0.67081064]
[1645145388008,1.2364,2877.1,2875.8,0.8730719]
[1645145388261,6.9757,2877.4,2875.9,1.91916452]
[1645145388461,6.9757,2877.4,2876.5,0.998427]
[1645145388462,0.25981684,2877.3,2876.5,0.998427]
[1645145388661,0.25981684,2877.3,2876.6,0.0036019]
[1645145388860,0.25981684,2877.3,2876.6,0.3036019]
[1645145389064,1.12916684,2877.3,2876.6,0.0036019]
[1645145389267,0.10714607,2876.5,2875.8,0.5134529]
[1645145389462,0.10714607,2876.5,2875.9,1.19749969]
[1645145389663,0.10714607,2876.5,2875.7,0.42011134]
[1645145389866,0.10714607,2876.5,2875.8,1.19750552]
[1645145390165,0.10714607,2876.5,2875.8,0.3]
[1645145390564,0.26725411,2876.4,2875.6,1.26131874]
[1645145390763,0.26725411,2876.4,2875.7,1.20230322]
[1645145390968,0.10714607,2876.5,2875.7,1.20230322]
[1645145391167,0.26762984,2876.4,2875.7,1.20230322]
[1645145391570,0.26762984,2876.4,2875.8,0.8695]
[1645145391772,0.26762984,2876.4,2875.9,2.36867239]
[1645145392001,0.26762984,2876.4,2876.0,1.19919239]
[1645145393809,0.26762984,2876.4,2875.7,0.00301752]
[1645145393810,0.1738,2876.3,2875.7,0.00301752]
[1645145394003,0.1738,2876.3,2875.2,0.2836]
[1645145394004,0.26762984,2876.2,2875.3,1.203211]
[1645145394203,0.1738,2876.1,2875.3,1.203211]
[1645145394403,1.13750984,2876.0,2875.7,0.00301752]
[1645145394603,0.26762984,2875.9,2875.7,0.00301752]
[1645145395007,4.70330393,2875.9,2875.7,0.00301752]
[1645145395204,4.70330393,2875.9,2875.3,1.203211]
[1645145395205,3.80923823,2875.8,2875.3,1.203211]
[1645145395404,1.31137984,2875.7,2875.3,1.203211]
[1645145395606,0.26799698,2875.6,2875.3,1.203211]
[1645145395857,1.04375,2875.7,2875.3,1.203211]
[1645145396059,3.61107193,2875.6,2875.3,1.203211]
[1645145396259,3.61107193,2875.6,2875.2,0.2836]
[1645145396260,1.13787543,2875.5,2875.2,0.2836]
[1645145396458,4.17151835,2875.4,2875.2,0.2836]
[1645145396657,3.90359292,2875.4,2875.2,0.2836]
[1645145397058,0.86995,2875.5,2875.3,1.20309932]
[1645145397361,1.09256639,2875.4,2875.3,1.20309932]
[1645145397961,6.5,2875.3,2874.6,0.04149491]
[1645145398160,4.9839561,2875.2,2874.6,0.04149491]
[1645145398559,0.90908412,2874.9,2874.6,0.04149491]
[1645145399162,2.64931412,2874.9,2874.8,0.00310905]
[1645145399358,3.51949412,2874.9,2874.8,0.00310905]
[1645145399596,6.9564571,2874.9,2874.8,0.00310905]
[1645145399797,3.51949412,2874.9,2874.8,0.00310905]
[1645145399997,4.38966412,2874.9,2874.6,0.04149491]
[1645145400399,0.87023,2874.7,2874.6,0.04149491]
[1645145401406,4.41609811,2874.7,2874.6,0.04149491]
[1645145401603,4.41609811,2874.7,2874.5,8.39e-05]
[1645145401604,6.5,2874.6,2874.5,8.39e-05]
[1645145401808,33.66579386,2874.6,2874.1,0.0606048]
[1645145402204,21.841,2874.5,2874.1,0.0606048]
[1645145402406,5.02202212,2874.4,2874.1,0.0606048]
[1645145402810,1.13938005,2874.2,2874.1,0.0606048]
[1645145403005,1.741,2874.3,2874.1,0.0606048]
[1645145403451,4.46516019,2874.2,2874.1,0.0606048]
[1645145403848,4.46516019,2874.2,2874.1,0.06371319]
[1645145404248,0.8705,2874.2,2874.1,0.06371319]
[1645145404447,1.98689358,2874.2,2874.1,0.06371319]
[1645145404650,5.43183549,2874.2,2874.1,0.06371319]
[1645145404849,5.43183549,2874.2,2874.1,0.0606048]
[1645145406653,9.01943549,2874.2,2874.1,0.0606048]